[Event "8th Brazilian Open SESC Caioba 2024"]
[Site "Caioba"]
[Date "2024.06.26"]
[Round "5.7"]
[White "Rodi, Luis Ernesto"]
[Black "Rodriguez Vila, Andres"]
[Result "1/2-1/2"]
[ECO "B40"]
[WhiteElo "2208"]
[BlackElo "2396"]
[Annotator "RC"]
[PlyCount "129"]
[EventDate "2024.06.15"]
[EventCountry "BRA"]
[SourceTitle "playchess.com"]
[Source "ChessBase"]
[SourceQuality "1"]
[TimeControl "5400+30"]

1. e4 {[%emt 0:02:04]} c5 {[%emt 0:00:12]} 2. Nf3 {[%emt 0:00:27]} e6 {[%emt 0:00:11]} 3. d4 {[%emt 0:00:12]} cxd4 {[%emt 0:00:06]} 4. Qxd4 {[%emt 0:00:05]} Nc6 {[%emt 0:00:18]} 5. Qe3 {[%emt 0:00:07]} b6 {[%emt 0:00:54]} 6. Bd3 {[%emt 0:00:59]} Nf6 {[%emt 0:00:45]} 7. Nc3 {[%emt 0:00:13]} Bc5 {[%emt 0:00:50]} 8. Qe2 {[%emt 0:00:40]} Bb7 {[%emt 0:00:42]} 9. Be3 {[%emt 0:01:36]} Bxe3 {[%emt 0:10:37]} 10. Qxe3 {[%emt 0:00:13]} d5 {[%emt 0:01:04]} 11. exd5 {[%emt 0:00:44]} Nxd5 {[%emt 0:00:12]} 12. Nxd5 {[%emt 0:02:19]} Qxd5 {[%emt 0:00:12]} 13. Be4 {[%emt 0:00:47]} Qa5+ {[%emt 0:06:49]} 14. c3 {[%emt 0:01:33]} O-O {[%emt 0:00:33]} 15. O-O {[%emt 0:00:11]} h6 {[%emt 0:05:12]} 16. Rfd1 {[%emt 0:04:34]} Rad8 {[%emt 0:01:13]} 17. h3 {[%emt 0:07:51]} Rxd1+ {[%emt 0:05:50]} 18. Rxd1 {[%emt 0:00:21]} Qxa2 {[%emt 0:00:09]} 19. Rd7 {[%emt 0:00:24]} Ba8 {[%emt 0:01:29]} 20. Rc7 {[%emt 0:00:51]} Na5 {[%emt 0:14:37]} 21. Bxa8 {[%emt 0:02:56]} Rxa8 {[%emt 0:00:08]} 22. Qf4 {[%emt 0:00:53]} Rf8 {[%emt 0:05:06]} 23. Ne5 {[%emt 0:01:27]} Qb1+ {[%emt 0:00:16]} 24. Kh2 {[%emt 0:00:14]} Qf5 {[%emt 0:00:07]} 25. Qxf5 {[%emt 0:00:49]} exf5 {[%emt 0:00:01]} 26. Rxa7 {[%emt 0:00:09]} Re8 {[%emt 0:01:23]} 27. Nd7 {[%emt 0:04:26]} Nc4 {[%emt 0:04:15]} 28. b3 {[%emt 0:04:18]} Nd2 {[%emt 0:00:25]} 29. Nxb6 {[%emt 0:01:07]} f4 {[%emt 0:05:33]} 30. Ra8 {[%emt 0:04:42]} Rxa8 {[%emt 0:00:06]} 31. Nxa8 {[%emt 0:00:07]} Nxb3 {[%emt 0:00:02]} 32. Nc7 {[%emt 0:00:09]} g5 {[%emt 0:02:59]} 33. Nd5 {[%emt 0:01:40]} Kg7 {[%emt 0:00:16]} 34. h4 {[%emt 0:00:05]} Kg6 {[%emt 0:00:49]} 35. Kh3 {[%emt 0:00:23]} Nd2 {[%emt 0:00:54]} 36. hxg5 {[%emt 0:03:56]} hxg5 {[%emt 0:00:34]} 37. g3 {[%emt 0:00:15]} f3 {[%emt 0:04:58]} 38. g4 {[%emt 0:00:37]} Ne4 {[%emt 0:00:17]} 39. c4 {[%emt 0:01:01]} Nxf2+ {[%emt 0:00:15]} 40. Kg3 {[%emt 0:00:05]} Nd3 {[%emt 0:00:04]} 41. Kxf3 {[%emt 0:00:06]} Ne5+ {[%emt 0:00:07]} 42. Kg3 {[%emt 0:00:35]} Nxc4 {[%emt 0:00:04]} 43. Kf3 {[%emt 0:00:50]} Ne5+ {[%emt 0:00:04]} 44. Kg3 {[%emt 0:00:06]} f6 {[%emt 0:00:11]} 45. Ne7+ {[%emt 0:00:31]} Kf7 {[%emt 0:00:06]} 46. Nf5 {[%emt 0:00:06]} Ke6 {[%emt 0:00:02]} 47. Ng7+ {[%emt 0:00:10]} Kd5 {[%emt 0:00:10]} 48. Nh5 {[%emt 0:00:12]} Nd7 {[%emt 0:00:06]} 49. Ng7 {[%emt 0:00:14]} Ke5 {[%emt 0:00:22]} 50. Nf5 {[%emt 0:00:12]} Nc5 {[%emt 0:00:37]} 51. Kf3 {[%emt 0:00:59]} Kd5 {[%emt 0:02:07]} 52. Ne3+ {[%emt 0:00:42]} Kd4 {[%emt 0:00:34]} 53. Nf5+ {[%emt 0:00:36]} Kd3 {[%emt 0:00:04]} 54. Nd6 {[%emt 0:00:22]} Nb3 {[%emt 0:01:52]} 55. Ne8 {[%emt 0:01:14]} Nd2+ {[%emt 0:00:05]} 56. Kg3 {[%emt 0:00:53]} Ne4+ {[%emt 0:04:27]} 57. Kf3 {[%emt 0:00:08]} Kd4 {[%emt 0:00:03]} 58. Ng7 {[%emt 0:00:13]} Nd2+ {[%emt 0:00:14]} 59. Kg3 {[%emt 0:00:09]} Ke4 {[%emt 0:01:04]} 60. Ne8 {[%emt 0:01:26]} Ke3 {[%emt 0:01:47]} 61. Nxf6 {[%emt 0:01:22]} Ne4+ {[%emt 0:00:03]} 62. Nxe4 {[%emt 0:00:05]} Kxe4 {[%emt 0:00:02]} 63. Kg2 {[%emt 0:00:27]} Kf4 {[%emt 0:00:03]} 64. Kf2 {[%emt 0:00:15]} Kxg4 {[%emt 0:00:02]} 65. Kg2 {[%emt 0:00:05]} 1/2-1/2

[Event "8th Brazilian Open SESC Caioba 2024"]
[Site "Caioba"]
[Date "2024.06.26"]
[Round "5.8"]
[White "Schnaider, Ilan"]
[Black "Lujan, Carolina"]
[Result "1/2-1/2"]
[ECO "E60"]
[WhiteElo "2395"]
[BlackElo "2269"]
[Annotator "RC"]
[PlyCount "104"]
[EventDate "2024.06.15"]
[EventCountry "BRA"]
[SourceTitle "playchess.com"]
[Source "ChessBase"]
[SourceQuality "1"]
[TimeControl "5400+30"]

1. d4 {[%emt 0:00:02]} Nf6 {[%emt 0:02:23]} 2. c4 {[%emt 0:00:08]} g6 {[%emt 0:01:38]} 3. h4 {[%emt 0:00:22]} c5 {[%emt 0:07:25]} 4. d5 {[%emt 0:00:10]} d6 {[%emt 0:02:10]} 5. Nc3 {[%emt 0:02:32]} e6 {[%emt 0:05:03]} 6. e4 {[%emt 0:02:49]} Bg7 {[%emt 0:11:10]} 7. Be2 {[%emt 0:00:15]} exd5 {[%emt 0:00:59]} 8. exd5 {[%emt 0:00:34]} h5 {[%emt 0:05:38]} 9. Nf3 {[%emt 0:08:35]} Bf5 {[%emt 0:08:57]} 10. O-O {[%emt 0:02:19]} O-O {[%emt 0:00:33]} 11. Ng5 {[%emt 0:05:44]} Nbd7 {[%emt 0:03:37]} 12. Bf4 {[%emt 0:01:16]} Ne5 {[%emt 0:01:00]} 13. a4 {[%emt 0:11:03]} Ne8 {[%emt 0:08:17]} 14. a5 {[%emt 0:04:39]} Nc7 {[%emt 0:00:33]} 15. Qd2 {[%emt 0:05:14]} Re8 {[%emt 0:03:20]} 16. Rfe1 {[%emt 0:03:05]} Na6 {[%emt 0:12:14]} 17. Nge4 {[%emt 0:16:54]} Nb4 {[%emt 0:09:11]} 18. Bg5 {[%emt 0:00:48]} f6 {[%emt 0:01:22]} 19. Bf4 {[%emt 0:00:45]} Qd7 {[%emt 0:02:57]} 20. Bf1 {[%emt 0:05:39]} a6 {[%emt 0:03:19]} 21. f3 {[%emt 0:12:19]} Re7 {[%emt 0:01:09]} 22. Rad1 {[%emt 0:04:26]} Rae8 {[%emt 0:00:21]} 23. b3 {[%emt 0:01:19]} Nf7 {[%emt 0:01:45]} 24. Kh2 {[%emt 0:04:39]} Qd8 {[%emt 0:00:20]} 25. Bg3 {[%emt 0:01:37]} Ne5 {[%emt 0:01:38]} 26. Kh1 {[%emt 0:02:49]} Nf7 {[%emt 0:00:38]} 27. Qf2 {[%emt 0:00:55]} Ne5 {[%emt 0:00:52]} 28. Kh2 {[%emt 0:01:57]} Qc7 {[%emt 0:02:50]} 29. Qd2 {[%emt 0:00:55]} Qd8 {[%emt 0:00:18]} 30. Bf4 {[%emt 0:00:36]} Nf7 {[%emt 0:00:21]} 31. Qf2 {[%emt 0:00:24]} Ne5 {[%emt 0:01:29]} 32. Re3 {[%emt 0:00:07]} Bxe4 {[%emt 0:01:57]} 33. Nxe4 {[%emt 0:00:19]} Ng4+ {[%emt 0:00:25]} 34. fxg4 {[%emt 0:00:04]} Rxe4 {[%emt 0:00:02]} 35. Rxe4 {[%emt 0:00:23]} Rxe4 {[%emt 0:00:00]} 36. gxh5 {[%emt 0:00:08]} g5 {[%emt 0:00:45]} 37. hxg5 {[%emt 0:00:18]} fxg5 {[%emt 0:00:00]} 38. Bg3 {[%emt 0:00:14]} Qe8 {[%emt 0:00:08]} 39. Qf3 {[%emt 0:01:13]} Be5 {[%emt 0:01:33]} 40. Bxe5 {[%emt 0:02:10]} Qxe5+ {[%emt 0:00:01]} 41. Kg1 {[%emt 0:00:33]} Rf4 {[%emt 0:00:25]} 42. Qh3 {[%emt 0:00:20]} g4 {[%emt 0:01:07]} 43. Qh4 {[%emt 0:00:07]} Qe3+ {[%emt 0:00:08]} 44. Kh2 {[%emt 0:00:41]} Qe5 {[%emt 0:00:11]} 45. Kg1 {[%emt 0:00:36]} Qe3+ {[%emt 0:00:06]} 46. Kh1 {[%emt 0:00:11]} g3 {[%emt 0:00:28]} 47. Qg5+ {[%emt 0:00:44]} Kh8 {[%emt 0:00:34]} 48. Qh6+ {[%emt 0:00:35]} Kg8 {[%emt 0:00:01]} 49. Qg5+ {[%emt 0:00:33]} Kh8 {[%emt 0:00:15]} 50. Qh6+ {[%emt 0:00:45]} Kg8 {[%emt 0:00:01]} 51. Qg6+ {[%emt 0:00:01]} Kh8 {[%emt 0:00:14]} 52. Qg5 {[%emt 0:01:39]} Qe6 {[%emt 0:04:42]} 1/2-1/2

[Event "8th Brazilian Open SESC Caioba 2024"]
[Site "Caioba"]
[Date "2024.06.26"]
[Round "5.9"]
[White "Hernandez Guerrero, Gilberto"]
[Black "Tamarozi, Isabelle"]
[Result "1-0"]
[ECO "D34"]
[WhiteElo "2506"]
[BlackElo "2030"]
[Annotator "TA"]
[PlyCount "115"]
[EventDate "2024.06.15"]
[EventCountry "BRA"]
[SourceTitle "playchess.com"]
[Source "ChessBase"]
[SourceQuality "1"]
[TimeControl "5400+30"]

{[%evp 24,115,52,38,64,52,60,50,56,66,98,-40,110,0,0,0,117,47,43,10,120,29,35,41,31,35,42,46,137,150,153,135,176,183,178,157,187,186,207,201,210,203,194,191,189,166,207,207,177,218,200,218,211,196,215,196,247,232,232,232,263,232,309,175,646,624,645,577,654,571,817,797,649,659,1106,1139,997,875,1343,1249,2302,2022,5984,5984,29971,29972,29977,29978,29980,29981,29981,29982,29981,29982]} 1. d4 {[%emt 0:00:09]} d5 {[%emt 0:00:11]} 2. c4 {[%emt 0:00:15]} e6 {[%emt 0:00:11]} 3. Nf3 {[%emt 0:00:29]} c5 {[%emt 0:00:32]} 4. cxd5 {[%emt 0:00:52]} exd5 {[%emt 0:00:24]} 5. g3 {[%emt 0:00:14]} Nf6 {[%emt 0:00:28]} 6. Bg2 {[%emt 0:00:21]} Nc6 {[%emt 0:00:25]} 7. O-O {[%emt 0:00:28]} Be7 {[%emt 0:00:27]} 8. Nc3 {[%emt 0:00:18]} O-O {[%emt 0:00:25]} 9. dxc5 {[%emt 0:00:48]} Bxc5 {[%emt 0:00:35]} 10. Na4 {[%emt 0:00:20]} Be7 {[%emt 0:06:10]} 11. Be3 {[%emt 0:00:58]} Ne4 {[%emt 0:05:26]} 12. Rc1 {[%emt 0:02:23]} Bf6 {[%emt 0:06:29]} 13. Nd4 {[%emt 0:09:26] D34: Tarrasch Defence: 6 g3 Nf6 7 Bg2 Be7.} Ne5 {[%emt 0:07:52]} 14. b3 {[%emt 0:09:22]} Ng4 $146 {[%emt 0:08:35]} ({Predecessor:} 14... Re8 15. h3 Bd7 16. Nc5 Rc8 17. Nxe4 dxe4 18. Kh2 Rxc1 19. Qxc1 Nc6 20. Nb5 Be5 {1-0 Wiejaczka,B (2006)-Stebel,A (1830) Krakow op-B 29th 2018 (1)}) 15. Bf4 {[%emt 0:01:54]} g5 {[%emt 0:03:36]} 16. Bc7 {[%emt 0:02:02]} Qe7 {[%emt 0:01:04]} 17. Qd3 {[%emt 0:08:33]} (17. Nb5 $1 $16) 17... b6 {[%emt 0:16:42]} (17... Bd7 $15 {stays ahead.} 18. Nc3 Nexf2 19. Rxf2 Nxf2 (19... Qc5 $2 20. Rxf6 Qxc7 21. Rff1 $18) 20. Kxf2 Qc5 21. Nxd5 Qxd4+ (21... Qxc1 22. Nxf6+ Kg7 23. Qxh7+ Kxf6 24. Qh6+ Ke7 25. Bd6+ Kd8 26. Qxf8+ Be8 27. Qe7+ Kc8 28. Qxe8#) 22. Qxd4 Bxd4+ 23. e3 Bb2) 18. e3 {[%emt 0:08:19]} (18. Nc3 $1 $16 {[%cal Rc3d5]} Nexf2 (18... Qxc7 $2 19. Nxd5 Qe5 20. Nc6 $18) 19. Nxd5 Nxd3 20. Nxe7+ Bxe7 21. exd3 (21. Bxa8 $2 Nxc1 22. Rxc1 Ba3 $19)) 18... Re8 $11 {[%emt 0:08:30]} 19. Nc3 {[%emt 0:22:35]} Bb7 {[%emt 0:14:01]} (19... Qxc7 $2 20. Nxd5 (20. Nxe4 dxe4 $11) 20... Qe5 21. Nc6 $18) (19... Ngxf2 $11 {remains equal.} 20. Rxf2 Nxf2 (20... Qxc7 21. Bxe4 dxe4 22. Nxe4 $11) 21. Kxf2 Ba6 (21... Qxc7 22. Nxd5 Qd8 23. Nc7 $16) 22. Nxd5 (22. Qxa6 Qxe3+ 23. Kf1 Qxc1+ 24. Kf2 Qe3+ 25. Kf1 Qe1#) (22. Ncb5 $2 Bxd4 23. Qxd4 Bxb5 $19) 22... Bxd3 23. Nxe7+ Bxe7) 20. Nxe4 {[%emt 0:05:12]} ({White should try} 20. Nf5 $16 Qe6 21. Nxe4 dxe4 22. Qb5) 20... dxe4 $14 {[%emt 0:01:09]} 21. Qe2 {[%emt 0:00:04]} Nh6 {[%emt 0:07:16] [#]} (21... Bxd4 $1 $11 22. exd4 (22. Qxg4 Bb2 $14) 22... Qe6) 22. g4 {[%emt 0:02:53]} (22. Nb5 $1 $16) 22... Rac8 {[%emt 0:05:24]} 23. Bg3 {[%emt 0:01:06]} Bxd4 {[%emt 0:02:15]} 24. exd4 {[%emt 0:00:09]} Qd7 {[%emt 0:00:50]} 25. h3 {[%emt 0:03:20]} Qxd4 {[%emt 0:01:10]} ({Better is} 25... f6 $14) 26. Rxc8 $16 {[%emt 0:00:47]} Bxc8 {[%emt 0:00:03]} 27. Rd1 {[%emt 0:00:18]} Qf6 {[%emt 0:02:45]} 28. Qb5 {[%emt 0:04:12]} ({Reject} 28. Bxe4 $6 Bb7 29. f3 (29. Bxh7+ $2 Kxh7 30. Qd3+ Be4 $19) 29... Bxe4 30. fxe4 Qc3 $14) 28... Re6 {[%emt 0:00:54]} 29. Rd5 {[%emt 0:01:54]} a6 {[%emt 0:00:38]} 30. Rxg5+ {[%emt 0:03:58]} Kf8 {[%emt 0:00:01] [#]} 31. Qb4+ $1 {[%emt 0:01:15]} Qe7 {[%emt 0:00:43]} 32. Qxe7+ {[%emt 0:00:34]} Kxe7 {[%emt 0:00:02]} 33. Bf4 {[%emt 0:00:55]} Kf8 {[%emt 0:01:07]} 34. Rh5 {[%emt 0:01:59]} Kg7 {[%emt 0:00:34]} 35. Rxh6 {[%emt 0:01:32]} Rxh6 {[%emt 0:00:02]} 36. Bxh6+ {[%emt 0:00:08]} Kxh6 {[%emt 0:00:06]} 37. Bxe4 {[%emt 0:00:05]} Kg7 {[%emt 0:00:41]} 38. Kg2 {[%emt 0:00:37]} h6 {[%emt 0:00:48]} 39. f4 {[%emt 0:00:21]} f6 {[%emt 0:00:45]} (39... Bd7 $142 40. Kg3 a5) 40. b4 $18 {[%emt 0:00:57]} Be6 {[%emt 0:00:37]} 41. a3 {[%emt 0:00:08]} a5 {[%emt 0:00:13]} 42. Kf3 {[%emt 0:01:38]} Bd7 {[%emt 0:00:31]} 43. Ke3 {[%emt 0:00:18]} (43. bxa5 $142 bxa5 44. Ke3) 43... Kf8 $2 {[%emt 0:00:44]} (43... axb4 44. axb4 Be6) 44. bxa5 $18 {[%emt 0:02:20]} bxa5 {[%emt 0:00:06]} 45. Kd4 {[%emt 0:00:05]} Bb5 {[%emt 0:01:00]} 46. Bf3 {[%emt 0:00:12]} Ke7 {[%emt 0:00:27]} 47. Kc5 {[%emt 0:00:10]} Bd3 {[%emt 0:00:27]} 48. Bd1 {[%emt 0:00:21]} Bf1 {[%emt 0:00:21]} 49. h4 {[%emt 0:00:06]} Kd7 {[%emt 0:00:39]} 50. Kb6 {[%emt 0:01:56]} Kd6 {[%emt 0:00:25]} 51. Kxa5 {[%emt 0:00:29]} Kc5 {[%emt 0:00:03]} 52. g5 {[%emt 0:01:06]} fxg5 {[%emt 0:00:30]} 53. fxg5 {[%emt 0:00:10]} hxg5 {[%emt 0:00:48]} 54. hxg5 {[%emt 0:00:05]} Bc4 {[%emt 0:00:41]} 55. Bc2 {[%emt 0:00:58]} Kc6 {[%emt 0:00:39]} 56. Kb4 {[%emt 0:00:29]} Be6 {[%emt 0:00:26]} 57. g6 {[%emt 0:00:16]} Kd6 {[%emt 0:00:33]} 58. Bb3 {[%emt 0:00:16]} 1-0

[Event "8th Brazilian Open SESC Caioba 2024"]
[Site "Caioba"]
[Date "2024.06.26"]
[Round "5.10"]
[White "Barbosa, Evandro Amorim"]
[Black "Borges, Guilherme Deola"]
[Result "1-0"]
[ECO "C54"]
[WhiteElo "2491"]
[BlackElo "2151"]
[Annotator "TA"]
[PlyCount "59"]
[EventDate "2024.06.15"]
[EventCountry "BRA"]
[SourceTitle "playchess.com"]
[Source "ChessBase"]
[SourceQuality "1"]
[TimeControl "5400+30"]

{[%evp 10,59,25,14,9,14,28,4,7,-10,21,10,28,23,22,19,22,24,11,8,24,12,24,-42,-52,-56,70,60,57,75,105,93,106,34,30,17,25,9,10,10,489,498,2377,0,15,14,1513,0,58,0,74,-132]} 1. e4 {[%emt 0:00:05]} e5 {[%emt 0:00:05]} 2. Nf3 {[%emt 0:02:37]} Nc6 {[%emt 0:00:04]} 3. Bc4 {[%emt 0:02:20]} Bc5 {[%emt 0:00:08]} 4. d3 {[%emt 0:00:22]} Nf6 {[%emt 0:00:14]} 5. Bg5 {[%emt 0:00:20][%cal Bc1g5,Bg5h4,Bh4g3][%mdl 32]} O-O {[%emt 0:01:28]} 6. c3 {[%emt 0:03:06]} h6 {[%emt 0:02:17]} 7. Bh4 {[%emt 0:00:18]} Be7 {[%emt 0:01:59]} 8. Bg3 {[%emt 0:03:29]} d6 {[%emt 0:01:30] The position is equal.} 9. h3 {[%emt 0:00:45]} Kh8 {[%emt 0:12:15]} 10. Nbd2 {[%emt 0:11:12]} Ng8 {[%emt 0:01:01]} 11. d4 {[%emt 0:03:15][%cal Rd4e5]} f5 {[%emt 0:12:07] [#] aiming for ...fxe4.} 12. dxe5 {[%emt 0:01:15] Black should prevent exf5.} f4 {[%emt 0:00:08]} 13. exd6 {[%emt 0:01:22]} fxg3 {[%emt 0:00:13]} 14. dxe7 {[%emt 0:00:22]} gxf2+ {[%emt 0:00:06]} 15. Kxf2 {[%emt 0:00:46]} Qxe7 {[%emt 0:00:06]} 16. Re1 {[%emt 0:02:50]} (16. Qe2 $11) 16... Ne5 $15 {[%emt 0:04:18] Hoping for ...Qc5+.} 17. Re3 {[%emt 0:07:32]} Nf6 {[%emt 0:11:46]} ({Black should try} 17... Rxf3+ $1 $15 18. gxf3 Bxh3 (18... Qh4+ 19. Ke2 $14) 19. Bxg8 Rxg8) 18. Kg1 $1 $14 {[%emt 0:06:05]} Qc5 {[%emt 0:30:03][%csl LRc4,LRe3]} 19. Qe2 {[%emt 0:11:16] Black must now prevent b4.} Nxf3+ {[%emt 0:00:19]} 20. Nxf3 {[%emt 0:02:07] And now b4 would win.} (20. Qxf3 $2 {too greedy.} Ng4 $19) 20... Nxe4 {[%emt 0:00:55]} 21. Nd4 {[%emt 0:04:07]} ({White should play} 21. Re1 $16) 21... Nd6 {[%emt 0:05:03]} 22. Bd3 {[%emt 0:13:45]} Bf5 {[%emt 0:01:42]} 23. Re1 {[%emt 0:04:01] Strongly threatening Qh5.} Bxd3 {[%emt 0:01:27]} 24. Qxd3 {[%emt 0:00:30] Ne6 would now be deadly.} Nf5 $2 {[%emt 0:02:58][%mdl 8192] [#]} (24... Rae8 $11) 25. Re5 $1 $18 {[%emt 0:19:13]} Nd6 {[%emt 0:10:48]} (25... Qd6 $142 26. Rxf5 Rfe8) 26. R5e3 $2 {[%emt 0:00:30]} (26. Rxc5 $18 Rf7 27. Ne6) 26... Rae8 {[%emt 0:00:30]} 27. Qg6 {[%emt 0:00:30]} Ra8 {[%emt 0:00:30][%mdl 8192]} (27... Rxe3 $11 28. Rxe3 Rf6) 28. Qd3 $2 {[%emt 0:00:30]} (28. Ne6 $18 {[%csl Ge6][%cal Rg6g7]} Rf1+ 29. Kh2 (29. Kxf1 Qf5+ 30. Qxf5 Nxf5 $18)) 28... Rf6 {[%emt 0:00:30]} (28... Rae8 $11) 29. Re5 {[%emt 0:00:30]} (29. Kh2 $14) 29... Qb6 {[%emt 0:00:30]} (29... Rff8 $1 $11) 30. Ra1 $2 {[%emt 0:00:30][%mdl 32768] Weighted Error Value: White=0.51/Black=0.48.  Loses game:     	---       	Black=2      Missed win:     	White=2     	---        Mistake:       	White=3     	Black=4      Inaccurate:     	---       	Black=2      OK:         	White=4     	Black=8      Best:        	White=1     	Black=4      Strong:       	White=2     	---       . Loss on time!?} (30. b4 $16 {keeps the pressure on.}) 1-0

[Event "8th Brazilian Open SESC Caioba 2024"]
[Site "Caioba"]
[Date "2024.06.26"]
[Round "5.12"]
[White "Sunye Neto, Jaime"]
[Black "Chemin, Vitorio"]
[Result "1-0"]
[ECO "E95"]
[WhiteElo "2398"]
[BlackElo "2131"]
[Annotator "RC"]
[PlyCount "83"]
[EventDate "2024.06.15"]
[EventCountry "BRA"]
[SourceTitle "playchess.com"]
[Source "ChessBase"]
[SourceQuality "1"]
[TimeControl "5400+30"]

1. c4 {[%emt 0:00:30]} Nf6 {[%emt 0:01:27]} 2. Nc3 {[%emt 0:00:08]} g6 {[%emt 0:02:58]} 3. e4 {[%emt 0:02:17]} d6 {[%emt 0:00:07]} 4. d4 {[%emt 0:00:08]} Bg7 {[%emt 0:00:13]} 5. Be2 {[%emt 0:02:39]} Nbd7 {[%emt 0:02:50]} 6. Nf3 {[%emt 0:00:11]} e5 {[%emt 0:00:38]} 7. O-O {[%emt 0:00:10]} O-O {[%emt 0:00:24]} 8. Re1 {[%emt 0:00:17]} c6 {[%emt 0:02:06]} 9. Bf1 {[%emt 0:01:22]} Qe7 {[%emt 0:01:32]} 10. Bg5 {[%emt 0:15:26]} h6 {[%emt 0:00:50]} 11. Bh4 {[%emt 0:01:34]} Rd8 {[%emt 0:07:33]} 12. d5 {[%emt 0:09:08]} Nf8 {[%emt 0:02:57]} 13. Nd2 {[%emt 0:05:21]} g5 {[%emt 0:05:09]} 14. Bg3 {[%emt 0:01:15]} Ng6 {[%emt 0:00:32]} 15. f3 {[%emt 0:04:01]} h5 {[%emt 0:03:17]} 16. Bf2 {[%emt 0:02:10]} h4 {[%emt 0:09:41]} 17. b4 {[%emt 0:01:13]} cxd5 {[%emt 0:00:20]} 18. exd5 {[%emt 0:08:07]} Ne8 {[%emt 0:06:59]} 19. c5 {[%emt 0:00:40]} f5 {[%emt 0:01:09]} 20. Nc4 {[%emt 0:00:59]} g4 {[%emt 0:05:18]} 21. fxg4 {[%emt 0:01:16]} fxg4 {[%emt 0:01:21]} 22. g3 {[%emt 0:04:07]} hxg3 {[%emt 0:02:49]} 23. hxg3 {[%emt 0:00:16]} Qg5 {[%emt 0:03:23]} 24. Ne4 {[%emt 0:07:52]} Qh5 {[%emt 0:00:40]} 25. Ncxd6 {[%emt 0:04:44]} Nxd6 {[%emt 0:01:35]} 26. cxd6 {[%emt 0:00:28]} Bf5 {[%emt 0:05:43]} 27. Rc1 {[%emt 0:00:39]} Rf8 {[%emt 0:04:05]} 28. Rc2 {[%emt 0:07:21]} Nh8 {[%emt 0:10:25]} 29. d7 {[%emt 0:02:13]} Nf7 {[%emt 0:03:43]} 30. Bg2 {[%emt 0:01:42]} Bxd7 {[%emt 0:03:24]} 31. Rc7 {[%emt 0:00:28]} Bf5 {[%emt 0:01:51]} 32. Bc5 {[%emt 0:01:17]} Rfd8 {[%emt 0:01:38]} 33. Be7 {[%emt 0:00:31]} Rd7 {[%emt 0:01:28]} 34. Rxd7 {[%emt 0:01:44]} Bxd7 {[%emt 0:00:02]} 35. d6 {[%emt 0:01:03]} Re8 {[%emt 0:03:35]} 36. Nc5 {[%emt 0:02:56]} Bc6 {[%emt 0:00:43]} 37. Bxc6 {[%emt 0:00:27]} bxc6 {[%emt 0:00:02]} 38. Re4 {[%emt 0:03:12]} Ng5 {[%emt 0:03:58]} 39. Bxg5 {[%emt 0:00:24]} Qxg5 {[%emt 0:00:11]} 40. d7 {[%emt 0:00:16]} Rd8 {[%emt 0:02:12]} 41. Rxg4 {[%emt 0:00:38]} Qe3+ {[%emt 0:00:28]} 42. Kg2 {[%emt 0:00:11]} 1-0

[Event "8th Brazilian Open SESC Caioba 2024"]
[Site "Caioba"]
[Date "2024.06.26"]
[Round "5.13"]
[White "Guimaraes, Wagner Peixoto"]
[Black "Perdomo, Leandro"]
[Result "0-1"]
[ECO "A25"]
[WhiteElo "2145"]
[BlackElo "2391"]
[Annotator "RC"]
[PlyCount "86"]
[EventDate "2024.06.15"]
[EventCountry "BRA"]
[SourceTitle "playchess.com"]
[Source "ChessBase"]
[SourceQuality "1"]
[TimeControl "5400+30"]

1. c4 {[%emt 0:00:02]} g6 {[%emt 0:00:03]} 2. Nc3 {[%emt 0:00:16]} Bg7 {[%emt 0:00:02]} 3. g3 {[%emt 0:00:06]} e5 {[%emt 0:04:29]} 4. Bg2 {[%emt 0:00:07]} d6 {[%emt 0:00:10]} 5. e3 {[%emt 0:01:08]} Nc6 {[%emt 0:01:10]} 6. Nge2 {[%emt 0:02:31]} Nge7 {[%emt 0:00:23]} 7. O-O {[%emt 0:01:15]} O-O {[%emt 0:00:04]} 8. d3 {[%emt 0:01:40]} Bg4 {[%emt 0:00:42]} 9. h3 {[%emt 0:01:24]} Be6 {[%emt 0:00:04]} 10. Nd5 {[%emt 0:01:00]} Qd7 {[%emt 0:00:08]} 11. Kh2 {[%emt 0:00:21]} Rab8 {[%emt 0:10:15]} 12. Qa4 {[%emt 0:04:07]} a6 {[%emt 0:15:29]} 13. Bd2 {[%emt 0:03:18]} b5 {[%emt 0:16:12]} 14. Qxa6 {[%emt 0:04:21]} bxc4 {[%emt 0:00:12]} 15. dxc4 {[%emt 0:00:12]} Rxb2 {[%emt 0:00:15]} 16. Rad1 {[%emt 0:00:56]} f5 {[%emt 0:22:12]} 17. Nec3 {[%emt 0:16:40]} e4 {[%emt 0:00:13]} 18. Qa3 {[%emt 0:27:48]} Rbb8 {[%emt 0:09:44]} 19. f4 {[%emt 0:04:10]} Ra8 {[%emt 0:07:38]} 20. Qc1 {[%emt 0:01:10]} Bxd5 {[%emt 0:01:01]} 21. cxd5 {[%emt 0:00:45]} Nb4 {[%emt 0:00:13]} 22. Be1 {[%emt 0:02:41]} Nd3 {[%emt 0:05:09]} 23. Qc2 {[%emt 0:00:59]} Rfb8 {[%emt 0:02:13]} 24. Rxd3 {[%emt 0:00:53]} exd3 {[%emt 0:00:02]} 25. Qxd3 {[%emt 0:00:05]} Rb2 {[%emt 0:01:04]} 26. a4 {[%emt 0:02:42]} Nc8 {[%emt 0:00:58]} 27. Rf2 {[%emt 0:02:01]} Rxf2 {[%emt 0:00:38]} 28. Bxf2 {[%emt 0:00:02]} Nb6 {[%emt 0:00:38]} 29. e4 {[%emt 0:02:27]} fxe4 {[%emt 0:00:48]} 30. Nxe4 {[%emt 0:00:33]} Rxa4 {[%emt 0:00:02]} 31. Qb3 {[%emt 0:01:30]} Ra8 {[%emt 0:01:45]} 32. Ng5 {[%emt 0:01:41]} Qa4 {[%emt 0:00:38]} 33. Qf3 {[%emt 0:01:48]} Re8 {[%emt 0:00:53]} 34. Ne6 {[%emt 0:01:54]} Qc2 {[%emt 0:00:05]} 35. h4 {[%emt 0:02:18]} Nd7 {[%emt 0:01:02]} 36. Bf1 {[%emt 0:09:23]} Nf6 {[%emt 0:00:17]} 37. Kg1 {[%emt 0:01:19]} Qe4 {[%emt 0:01:20]} 38. Qxe4 {[%emt 0:00:49]} Nxe4 {[%emt 0:00:01]} 39. Nxc7 {[%emt 0:00:16]} Rc8 {[%emt 0:00:27]} 40. Nb5 {[%emt 0:01:54]} Rc1 {[%emt 0:00:03]} 41. Kg2 {[%emt 0:01:37]} Rc2 {[%emt 0:00:08]} 42. Bd3 {[%emt 0:00:10]} Rxf2+ {[%emt 0:00:14]} 43. Kg1 {[%emt 0:00:05]} Rb2 {[%emt 0:02:56]} 0-1